[Event "*** Titled Tuesday Blitz"]
[Site "Chess.com"]
[Date "2021.04.06"]
[Round "2"]
[White "DFeco"]
[Black "enriquetejedor"]
[Result "1-0"]
[WhiteElo "2340"]
[BlackElo "2598"]
[TimeControl "180+1"]
[EndTime "10:19:15 PDT"]
[Termination "DFeco won by checkmate"]

1. c4 {[%clk 0:03:00.9]} 1... Nf6 {[%clk 0:02:32.2]} 2. g3 {[%clk 0:03:00.5]}
2... e6 {[%clk 0:02:33.1]} 3. Bg2 {[%clk 0:03:00.2]} 3... Be7 {[%clk 0:02:33.3]}
4. Nf3 {[%clk 0:02:59.4]} 4... O-O {[%clk 0:02:34.2]} 5. O-O {[%clk 0:02:59.3]}
5... c5 {[%clk 0:02:33.9]} 6. d4 {[%clk 0:02:56.1]} 6... cxd4 {[%clk 0:02:08.9]}
7. Nxd4 {[%clk 0:02:53.5]} 7... Nc6 {[%clk 0:02:09.8]} 8. e4 {[%clk 0:02:41.1]}
8... a6 {[%clk 0:01:28.7]} 9. Nc3 {[%clk 0:02:36]} 9... d6 {[%clk 0:01:07.7]}
10. Nxc6 {[%clk 0:02:15.1]} 10... bxc6 {[%clk 0:01:08.6]} 11. e5 {[%clk
0:02:15.3]} 11... dxe5 {[%clk 0:01:07.4]} 12. Bxc6 {[%clk 0:02:14.8]} 12... Rb8
{[%clk 0:01:07.4]} 13. Qxd8 {[%clk 0:02:05.1]} 13... Rxd8 {[%clk 0:00:51.3]} 14.
b3 {[%clk 0:02:03.5]} 14... Bb4 {[%clk 0:00:48.6]} 15. Na4 {[%clk 0:01:37.6]}
15... Bd7 {[%clk 0:00:45.6]} 16. Bxd7 {[%clk 0:01:34.5]} 16... Rxd7 {[%clk
0:00:46.5]} 17. Bb2 {[%clk 0:01:33.9]} 17... e4 {[%clk 0:00:42.4]} 18. a3 {[%clk
0:01:24.1]} 18... Bd2 {[%clk 0:00:42.3]} 19. b4 {[%clk 0:01:23.6]} 19... e3
{[%clk 0:00:41.7]} 20. fxe3 {[%clk 0:01:00.6]} 20... Bxe3+ {[%clk 0:00:42.6]}
21. Kh1 {[%clk 0:01:00.8]} 21... Bg5 {[%clk 0:00:23]} 22. Bxf6 {[%clk
0:00:58.1]} 22... Bxf6 {[%clk 0:00:22.9]} 23. Rad1 {[%clk 0:00:58.3]} 23... Rbd8
{[%clk 0:00:22.8]} 24. Rxd7 {[%clk 0:00:57.2]} 24... Rxd7 {[%clk 0:00:23.7]} 25.
c5 {[%clk 0:00:56.9]} 25... Rd3 {[%clk 0:00:21.5]} 26. Rc1 {[%clk 0:00:49.8]}
26... Rxa3 {[%clk 0:00:13.8]} 27. c6 {[%clk 0:00:49.5]} 27... Be5 {[%clk
0:00:13.8]} 28. c7 {[%clk 0:00:46.6]} 28... Bxc7 {[%clk 0:00:14.1]} 29. Rxc7
{[%clk 0:00:45.9]} 29... h5 {[%clk 0:00:13.9]} 30. Nc5 {[%clk 0:00:43.5]} 30...
h4 {[%clk 0:00:12.1]} 31. gxh4 {[%clk 0:00:42.8]} 31... a5 {[%clk 0:00:09.1]}
32. b5 {[%clk 0:00:40.2]} 32... Ra1+ {[%clk 0:00:09.6]} 33. Kg2 {[%clk
0:00:39.5]} 33... Rb1 {[%clk 0:00:10.5]} 34. Rb7 {[%clk 0:00:38.5]} 34... Kh7
{[%clk 0:00:09.3]} 35. b6 {[%clk 0:00:37.8]} 35... Rb5 {[%clk 0:00:07.1]} 36.
Nd7 {[%clk 0:00:37.1]} 36... Rb2+ {[%clk 0:00:02.4]} 37. Kf3 {[%clk 0:00:34.3]}
37... Rb3+ {[%clk 0:00:02.2]} 38. Ke2 {[%clk 0:00:34.2]} 38... a4 {[%clk
0:00:02.2]} 39. Ra7 {[%clk 0:00:31.9]} 39... a3 {[%clk 0:00:02]} 40. b7 {[%clk
0:00:31.9]} 40... Rb2+ {[%clk 0:00:02.3]} 41. Ke3 {[%clk 0:00:31.3]} 41... Rb3+
{[%clk 0:00:02]} 42. Kd2 {[%clk 0:00:29.5]} 42... Rb2+ {[%clk 0:00:02]} 43. Kc3
{[%clk 0:00:29.2]} 43... Rxh2 {[%clk 0:00:01.9]} 44. b8=Q {[%clk 0:00:28.1]}
44... Rxh4 {[%clk 0:00:01.8]} 45. Ra8 {[%clk 0:00:26.5]} 45... Rh3+ {[%clk
0:00:01.3]} 46. Kd2 {[%clk 0:00:25.6]} 46... Rh2+ {[%clk 0:00:01.6]} 47. Ke3
{[%clk 0:00:25.7]} 47... Rh3+ {[%clk 0:00:01.6]} 48. Kf2 {[%clk 0:00:25.6]}
48... Kg6 {[%clk 0:00:01.6]} 49. Qb1+ {[%clk 0:00:21.2]} 49... Kg5 {[%clk
0:00:01.3]} 50. Ra5+ {[%clk 0:00:20.1]} 50... f5 {[%clk 0:00:01.5]} 51. Qc1+
{[%clk 0:00:19.9]} 51... Kg6 {[%clk 0:00:01.8]} 52. Rxa3 {[%clk 0:00:19.4]}
52... Rxa3 {[%clk 0:00:01.5]} 53. Qxa3 {[%clk 0:00:19]} 53... Kg5 {[%clk
0:00:01.5]} 54. Qe7+ {[%clk 0:00:18.6]} 54... Kf4 {[%clk 0:00:01.6]} 55. Qh4#
{[%clk 0:00:17.5]} 1-0

[Event "*** Titled Tuesday Blitz"]
[Site "Chess.com"]
[Date "2021.04.06"]
[Round "2"]
[White "Aslanov_Umid"]
[Black "LenkaPtacnikova"]
[Result "0-1"]
[WhiteElo "2407"]
[BlackElo "2198"]
[TimeControl "180+1"]
[EndTime "10:19:17 PDT"]
[Termination "LenkaPtacnikova won by resignation"]

1. e4 {[%clk 0:03:00.9]} 1... c5 {[%clk 0:02:59.2]} 2. Nf3 {[%clk 0:03:00]} 2...
e6 {[%clk 0:02:59.6]} 3. d4 {[%clk 0:02:59.7]} 3... cxd4 {[%clk 0:03:00.2]} 4.
Nxd4 {[%clk 0:02:59.9]} 4... Nf6 {[%clk 0:02:59.1]} 5. Nc3 {[%clk 0:02:59.4]}
5... Nc6 {[%clk 0:02:59.5]} 6. Ndb5 {[%clk 0:02:58.3]} 6... Bb4 {[%clk
0:02:59.5]} 7. a3 {[%clk 0:02:56.9]} 7... Bxc3+ {[%clk 0:02:59]} 8. Nxc3 {[%clk
0:02:57.8]} 8... d5 {[%clk 0:02:59.5]} 9. exd5 {[%clk 0:02:58.7]} 9... exd5
{[%clk 0:02:59.7]} 10. Bd3 {[%clk 0:02:58.5]} 10... O-O {[%clk 0:02:54.3]} 11.
O-O {[%clk 0:02:57.6]} 11... d4 {[%clk 0:02:48.2]} 12. Ne2 {[%clk 0:02:56.9]}
12... Bg4 {[%clk 0:02:47.4]} 13. h3 {[%clk 0:02:56]} 13... Bxe2 {[%clk
0:02:39.2]} 14. Bxe2 {[%clk 0:02:54.9]} 14... h6 {[%clk 0:02:25.1]} 15. Bf4
{[%clk 0:02:48.7]} 15... Nd5 {[%clk 0:02:21.4]} 16. Bg3 {[%clk 0:02:47]} 16...
Re8 {[%clk 0:02:20.6]} 17. Qd3 {[%clk 0:02:41.4]} 17... Qf6 {[%clk 0:02:14.3]}
18. Bf3 {[%clk 0:02:39.1]} 18... Rad8 {[%clk 0:02:06.1]} 19. Rfe1 {[%clk
0:02:34]} 19... Nf4 {[%clk 0:01:29.5]} 20. Bxf4 {[%clk 0:02:29.7]} 20... Qxf4
{[%clk 0:01:29.6]} 21. Bxc6 {[%clk 0:02:00.7]} 21... bxc6 {[%clk 0:01:27.6]} 22.
Rad1 {[%clk 0:02:00.4]} 22... c5 {[%clk 0:01:22.7]} 23. Qb5 {[%clk 0:01:57]}
23... Rxe1+ {[%clk 0:01:16.7]} 24. Rxe1 {[%clk 0:01:57.8]} 24... Qd2 {[%clk
0:01:16.7]} 25. Re2 {[%clk 0:01:49.7]} 25... Qd1+ {[%clk 0:01:14.1]} 26. Kh2
{[%clk 0:01:49.2]} 26... d3 {[%clk 0:01:12.5]} 27. Re8+ {[%clk 0:01:48]} 27...
Rxe8 {[%clk 0:01:10.1]} 28. Qxe8+ {[%clk 0:01:48.7]} 28... Kh7 {[%clk
0:01:10.4]} 29. Qe4+ {[%clk 0:01:49.5]} 29... Kg8 {[%clk 0:01:09.4]} 30. cxd3
{[%clk 0:01:38.1]} 30... Qd2 {[%clk 0:01:08.5]} 31. Qe3 {[%clk 0:01:24.8]} 31...
Qc2 {[%clk 0:01:00.6]} 32. Kg3 {[%clk 0:01:14.8]} 32... a5 {[%clk 0:00:47.9]}
33. Qe8+ {[%clk 0:00:48.7]} 33... Kh7 {[%clk 0:00:47.9]} 34. Qe4+ {[%clk
0:00:49.3]} 34... g6 {[%clk 0:00:42.7]} 35. Qc4 {[%clk 0:00:48.1]} 35... Qxb2
{[%clk 0:00:37.1]} 36. Qxf7+ {[%clk 0:00:46]} 36... Kh8 {[%clk 0:00:37]} 37.
Qxg6 {[%clk 0:00:41.7]} 37... Qxa3 {[%clk 0:00:36.6]} 38. Qxh6+ {[%clk 0:00:41]}
38... Kg8 {[%clk 0:00:36.5]} 39. Qe6+ {[%clk 0:00:41.2]} 39... Kg7 {[%clk
0:00:36.4]} 40. Qd7+ {[%clk 0:00:38.8]} 40... Kg6 {[%clk 0:00:34.8]} 41. Kg4
{[%clk 0:00:37.7]} 41... Qb4+ {[%clk 0:00:33.4]} 42. f4 {[%clk 0:00:36.5]} 42...
a4 {[%clk 0:00:33.5]} 43. h4 {[%clk 0:00:32]} 43... a3 {[%clk 0:00:32]} 44. h5+
{[%clk 0:00:32.5]} 44... Kf6 {[%clk 0:00:31.6]} 45. h6 {[%clk 0:00:28.8]} 45...
a2 {[%clk 0:00:24.1]} 46. h7 {[%clk 0:00:16.3]} 46... Qb8 {[%clk 0:00:23.7]} 47.
Qc6+ {[%clk 0:00:15.9]} 47... Kg7 {[%clk 0:00:23.4]} 48. Qd7+ {[%clk 0:00:14.8]}
48... Kh8 {[%clk 0:00:20.6]} 49. Qa4 {[%clk 0:00:10.4]} 49... Qb2 {[%clk
0:00:16.8]} 50. Qe8+ {[%clk 0:00:07.4]} 50... Kxh7 {[%clk 0:00:16.9]} 51. Qe7+
{[%clk 0:00:07.6]} 51... Qg7+ {[%clk 0:00:15.9]} 0-1

[Event "*** Titled Tuesday Blitz"]
[Site "Chess.com"]
[Date "2021.04.06"]
[Round "2"]
[White "GameOverBro"]
[Black "AlexOstrovskiy"]
[Result "1/2-1/2"]
[WhiteElo "2521"]
[BlackElo "2744"]
[TimeControl "180+1"]
[EndTime "10:19:18 PDT"]
[Termination "Game drawn by repetition"]

1. e4 {[%clk 0:03:00.9]} 1... d5 {[%clk 0:02:52.2]} 2. exd5 {[%clk 0:03:00.4]}
2... Nf6 {[%clk 0:02:52.8]} 3. Nc3 {[%clk 0:03:00.2]} 3... Nxd5 {[%clk
0:02:49.3]} 4. Bc4 {[%clk 0:03:00]} 4... c6 {[%clk 0:02:49.3]} 5. Qf3 {[%clk
0:02:59.2]} 5... e6 {[%clk 0:02:46.3]} 6. Nge2 {[%clk 0:02:57.9]} 6... b5 {[%clk
0:02:41.6]} 7. Bb3 {[%clk 0:02:55.5]} 7... a5 {[%clk 0:02:39.2]} 8. a4 {[%clk
0:02:54.6]} 8... b4 {[%clk 0:02:27.9]} 9. Ne4 {[%clk 0:02:54.3]} 9... Nd7 {[%clk
0:02:24.9]} 10. d4 {[%clk 0:02:53.1]} 10... Be7 {[%clk 0:02:24.6]} 11. O-O
{[%clk 0:02:42.6]} 11... O-O {[%clk 0:02:23.1]} 12. Re1 {[%clk 0:02:31.6]} 12...
Ba6 {[%clk 0:02:21.2]} 13. N2g3 {[%clk 0:02:31.5]} 13... Rc8 {[%clk 0:02:15.2]}
14. Bd2 {[%clk 0:02:10.9]} 14... c5 {[%clk 0:02:06.7]} 15. dxc5 {[%clk
0:02:10.5]} 15... Nxc5 {[%clk 0:02:07.4]} 16. Nxc5 {[%clk 0:02:09]} 16... Bxc5
{[%clk 0:02:03.4]} 17. Ne4 {[%clk 0:02:05]} 17... Bb6 {[%clk 0:01:59.8]} 18.
Rad1 {[%clk 0:01:58.5]} 18... Qc7 {[%clk 0:01:51.1]} 19. Bg5 {[%clk 0:01:13.9]}
19... Bb7 {[%clk 0:01:23.8]} 20. Qh5 {[%clk 0:01:03.4]} 20... f5 {[%clk
0:01:02.6]} 21. Ng3 {[%clk 0:00:47]} 21... Nf4 {[%clk 0:00:58.6]} 22. Bxf4
{[%clk 0:00:42.7]} 22... Qxf4 {[%clk 0:00:59.5]} 23. Bxe6+ {[%clk 0:00:42.2]}
23... Kh8 {[%clk 0:00:59.6]} 24. Rf1 {[%clk 0:00:32.6]} 24... g6 {[%clk
0:00:47]} 25. Bxc8 {[%clk 0:00:27.7]} 25... gxh5 {[%clk 0:00:44.9]} 26. Bxb7
{[%clk 0:00:28.3]} 26... h4 {[%clk 0:00:43.5]} 27. Ne2 {[%clk 0:00:27.2]} 27...
Qe5 {[%clk 0:00:39.3]} 28. Bf3 {[%clk 0:00:26.3]} 28... Qxb2 {[%clk 0:00:37.3]}
29. Nf4 {[%clk 0:00:26.4]} 29... Qxc2 {[%clk 0:00:31.2]} 30. Ne6 {[%clk
0:00:23.3]} 30... Rg8 {[%clk 0:00:28]} 31. Rd6 {[%clk 0:00:22.5]} 31... Ba7
{[%clk 0:00:20.3]} 32. Rd7 {[%clk 0:00:21.6]} 32... Bb8 {[%clk 0:00:17.1]} 33.
h3 {[%clk 0:00:20.5]} 33... Qb3 {[%clk 0:00:15.6]} 34. Bd5 {[%clk 0:00:19.6]}
34... Qxa4 {[%clk 0:00:14.9]} 35. Nc5 {[%clk 0:00:19.4]} 35... Qc2 {[%clk
0:00:13.7]} 36. Bxg8 {[%clk 0:00:19.5]} 36... Qxc5 {[%clk 0:00:13.7]} 37. Be6
{[%clk 0:00:18.6]} 37... Qe5 {[%clk 0:00:13.3]} 38. Rd8+ {[%clk 0:00:16.6]}
38... Kg7 {[%clk 0:00:13.3]} 39. Rfd1 {[%clk 0:00:16.4]} 39... Qxe6 {[%clk
0:00:09.2]} 40. Rxb8 {[%clk 0:00:16.6]} 40... b3 {[%clk 0:00:08.1]} 41. Rbd8
{[%clk 0:00:10.7]} 41... a4 {[%clk 0:00:06.8]} 42. R8d7+ {[%clk 0:00:10.4]}
42... Kf6 {[%clk 0:00:06.8]} 43. R7d6 {[%clk 0:00:10.5]} 43... b2 {[%clk
0:00:07]} 44. Rxe6+ {[%clk 0:00:09.1]} 44... Kxe6 {[%clk 0:00:07.9]} 45. Kh2
{[%clk 0:00:03.5]} 45... a3 {[%clk 0:00:08.1]} 46. Rb1 {[%clk 0:00:03.1]} 46...
f4 {[%clk 0:00:06]} 47. g3 {[%clk 0:00:03.1]} 47... hxg3+ {[%clk 0:00:06.3]} 48.
fxg3 {[%clk 0:00:04]} 48... fxg3+ {[%clk 0:00:06.8]} 49. Kxg3 {[%clk 0:00:04.9]}
49... a2 {[%clk 0:00:07]} 50. Rxb2 {[%clk 0:00:05.5]} 50... a1=Q {[%clk
0:00:07.6]} 51. Rf2 {[%clk 0:00:06]} 51... Qe5+ {[%clk 0:00:06.6]} 52. Kg2
{[%clk 0:00:06.1]} 52... Qc3 {[%clk 0:00:06.3]} 53. Rf3 {[%clk 0:00:05.8]} 53...
Qc2+ {[%clk 0:00:06.2]} 54. Kg3 {[%clk 0:00:06.7]} 54... Qg6+ {[%clk 0:00:06.6]}
55. Kf2 {[%clk 0:00:06.8]} 55... Ke5 {[%clk 0:00:07.1]} 56. Re3+ {[%clk
0:00:07.1]} 56... Kd4 {[%clk 0:00:07.5]} 57. Rf3 {[%clk 0:00:08]} 57... Qh5
{[%clk 0:00:07.2]} 58. Kg3 {[%clk 0:00:07.5]} 58... Qg6+ {[%clk 0:00:07.5]} 59.
Kf2 {[%clk 0:00:07.6]} 59... Ke4 {[%clk 0:00:07.7]} 60. Re3+ {[%clk 0:00:08.1]}
60... Kd4 {[%clk 0:00:08.2]} 61. Rf3 {[%clk 0:00:08.5]} 1/2-1/2

[Event "*** Titled Tuesday Blitz"]
[Site "Chess.com"]
[Date "2021.04.06"]
[Round "2"]
[White "MarkoPe"]
[Black "TigranMukhutdinov"]
[Result "0-1"]
[WhiteElo "2261"]
[BlackElo "2612"]
[TimeControl "180+1"]
[EndTime "10:19:18 PDT"]
[Termination "TigranMukhutdinov won by checkmate"]

1. e4 {[%clk 0:02:59.3]} 1... c5 {[%clk 0:02:59.8]} 2. Nf3 {[%clk 0:02:59.1]}
2... Nc6 {[%clk 0:03:00.1]} 3. d4 {[%clk 0:02:59.3]} 3... cxd4 {[%clk 0:03:01]}
4. Nxd4 {[%clk 0:03:00.2]} 4... e5 {[%clk 0:03:01.4]} 5. Nb5 {[%clk 0:02:59.9]}
5... d6 {[%clk 0:03:01.9]} 6. N1c3 {[%clk 0:02:58.6]} 6... a6 {[%clk 0:03:02.2]}
7. Na3 {[%clk 0:02:59]} 7... b5 {[%clk 0:03:02.9]} 8. Nd5 {[%clk 0:02:59.3]}
8... Nce7 {[%clk 0:03:03.6]} 9. Bg5 {[%clk 0:02:47.4]} 9... f6 {[%clk
0:03:03.6]} 10. Be3 {[%clk 0:02:46.3]} 10... Nxd5 {[%clk 0:03:03.9]} 11. Qxd5
{[%clk 0:02:45.8]} 11... Rb8 {[%clk 0:03:04.5]} 12. c3 {[%clk 0:02:40.6]} 12...
Ne7 {[%clk 0:02:54.3]} 13. Qd2 {[%clk 0:02:34.7]} 13... Bb7 {[%clk 0:02:52.5]}
14. f3 {[%clk 0:02:26.8]} 14... d5 {[%clk 0:02:52.5]} 15. exd5 {[%clk
0:01:51.7]} 15... Nxd5 {[%clk 0:02:46.2]} 16. Nc2 {[%clk 0:01:52.3]} 16... Nxe3
{[%clk 0:02:44.8]} 17. Nxe3 {[%clk 0:01:53.2]} 17... Qxd2+ {[%clk 0:02:44.4]}
18. Kxd2 {[%clk 0:01:54.1]} 18... Bc5 {[%clk 0:02:41.1]} 19. Bd3 {[%clk
0:01:52.3]} 19... O-O {[%clk 0:02:39.2]} 20. Be4 {[%clk 0:01:50.8]} 20... Rfd8+
{[%clk 0:02:35.9]} 21. Ke2 {[%clk 0:01:50.4]} 21... Bxe3 {[%clk 0:02:28.6]} 22.
Kxe3 {[%clk 0:01:50]} 22... b4 {[%clk 0:02:25.8]} 23. Bxb7 {[%clk 0:01:14.9]}
23... Rxb7 {[%clk 0:02:26.7]} 24. c4 {[%clk 0:01:13.3]} 24... Rd4 {[%clk
0:01:52.6]} 25. Rac1 {[%clk 0:01:01.4]} 25... Rbd7 {[%clk 0:01:50.1]} 26. Rc2
{[%clk 0:00:59.5]} 26... Kf7 {[%clk 0:01:45.3]} 27. c5 {[%clk 0:00:59.3]} 27...
Ke7 {[%clk 0:01:44.5]} 28. c6 {[%clk 0:00:58.4]} 28... Rc7 {[%clk 0:01:44.5]}
29. Rhc1 {[%clk 0:00:58.8]} 29... Kd6 {[%clk 0:01:44]} 30. Rc5 {[%clk
0:00:47.8]} 30... Rd5 {[%clk 0:01:41.4]} 31. R5c4 {[%clk 0:00:38.3]} 31... a5
{[%clk 0:01:41.5]} 32. R1c2 {[%clk 0:00:37.9]} 32... f5 {[%clk 0:01:36.4]} 33.
a3 {[%clk 0:00:30]} 33... bxa3 {[%clk 0:01:33.5]} 34. bxa3 {[%clk 0:00:30.9]}
34... Rb5 {[%clk 0:01:33.6]} 35. a4 {[%clk 0:00:26.1]} 35... Rb4 {[%clk
0:01:25.1]} 36. Rxb4 {[%clk 0:00:20.8]} 36... axb4 {[%clk 0:01:25.2]} 37. Rc4
{[%clk 0:00:21]} 37... Rxc6 {[%clk 0:01:17.6]} 38. Rxb4 {[%clk 0:00:21.2]} 38...
g5 {[%clk 0:01:12.5]} 39. h4 {[%clk 0:00:13.5]} 39... h6 {[%clk 0:01:10.3]} 40.
hxg5 {[%clk 0:00:13.6]} 40... hxg5 {[%clk 0:01:11.2]} 41. g4 {[%clk 0:00:12.9]}
41... Rc3+ {[%clk 0:01:05.2]} 42. Ke2 {[%clk 0:00:11.8]} 42... f4 {[%clk
0:01:05.1]} 43. Rb6+ {[%clk 0:00:10.2]} 43... Kd5 {[%clk 0:01:04.5]} 44. Rg6
{[%clk 0:00:11.1]} 44... Ra3 {[%clk 0:01:01.3]} 45. Rxg5 {[%clk 0:00:11]} 45...
Rxa4 {[%clk 0:01:01.8]} 46. Rg8 {[%clk 0:00:11.1]} 46... Ra2+ {[%clk 0:01:01.9]}
47. Kf1 {[%clk 0:00:10.5]} 47... Kd4 {[%clk 0:01:01.7]} 48. Re8 {[%clk
0:00:10.7]} 48... Ke3 {[%clk 0:00:57]} 49. Rxe5+ {[%clk 0:00:09.2]} 49... Kxf3
{[%clk 0:00:57.5]} 50. Kg1 {[%clk 0:00:06.7]} 50... Rg2+ {[%clk 0:00:56.3]} 51.
Kf1 {[%clk 0:00:05.9]} 51... Rxg4 {[%clk 0:00:57.2]} 52. Ra5 {[%clk 0:00:04.3]}
52... Rh4 {[%clk 0:00:57.2]} 53. Ra3+ {[%clk 0:00:04.6]} 53... Kg4 {[%clk
0:00:57.5]} 54. Kg2 {[%clk 0:00:04.9]} 54... Rh7 {[%clk 0:00:57.7]} 55. Rb3
{[%clk 0:00:03.9]} 55... Ra7 {[%clk 0:00:57.6]} 56. Rc3 {[%clk 0:00:03.9]} 56...
Ra2+ {[%clk 0:00:57.2]} 57. Kf1 {[%clk 0:00:04.6]} 57... Kf5 {[%clk 0:00:56.9]}
58. Rb3 {[%clk 0:00:04.1]} 58... Ke4 {[%clk 0:00:57.1]} 59. Rc3 {[%clk
0:00:04.3]} 59... Kf5 {[%clk 0:00:56.8]} 60. Rb3 {[%clk 0:00:04.7]} 60... Rc2
{[%clk 0:00:56.2]} 61. Rc3 {[%clk 0:00:05.1]} 61... Rxc3 {[%clk 0:00:56.4]} 62.
Kf2 {[%clk 0:00:04.8]} 62... Ke4 {[%clk 0:00:56]} 63. Ke2 {[%clk 0:00:05.1]}
63... Rc2+ {[%clk 0:00:56.3]} 64. Kd1 {[%clk 0:00:05.7]} 64... Kd3 {[%clk
0:00:56.7]} 65. Ke1 {[%clk 0:00:05.9]} 65... f3 {[%clk 0:00:57.3]} 66. Kf1
{[%clk 0:00:06.4]} 66... f2 {[%clk 0:00:57.9]} 67. Kg2 {[%clk 0:00:06.5]} 67...
Ke2 {[%clk 0:00:58.8]} 68. Kg3 {[%clk 0:00:06.5]} 68... f1=Q {[%clk 0:00:58.6]}
69. Kh2 {[%clk 0:00:06.9]} 69... Kf3# {[%clk 0:00:57.4]} 0-1

[Event "*** Titled Tuesday Blitz"]
[Site "Chess.com"]
[Date "2021.04.06"]
[Round "2"]
[White "viktorgen2021"]
[Black "JQuiroga18"]
[Result "1-0"]
[WhiteElo "2256"]
[BlackElo "2437"]
[TimeControl "180+1"]
[EndTime "10:19:20 PDT"]
[Termination "viktorgen2021 won by checkmate"]

1. d4 {[%clk 0:03:00.9]} 1... Nf6 {[%clk 0:02:59.6]} 2. Nf3 {[%clk 0:02:59.9]}
2... e6 {[%clk 0:02:59.3]} 3. g3 {[%clk 0:02:59.7]} 3... d5 {[%clk 0:02:58.5]}
4. Bg2 {[%clk 0:02:59.6]} 4... Be7 {[%clk 0:02:59]} 5. O-O {[%clk 0:02:59.4]}
5... O-O {[%clk 0:02:59.9]} 6. c4 {[%clk 0:03:00]} 6... dxc4 {[%clk 0:03:00]} 7.
Qc2 {[%clk 0:03:00.4]} 7... a6 {[%clk 0:02:59.5]} 8. Qxc4 {[%clk 0:02:59.2]}
8... b5 {[%clk 0:02:59.6]} 9. Qc2 {[%clk 0:02:59.3]} 9... Bb7 {[%clk 0:02:59.9]}
10. Bf4 {[%clk 0:02:59.9]} 10... Nd5 {[%clk 0:02:54]} 11. Bd2 {[%clk 0:02:59.2]}
11... Nd7 {[%clk 0:02:48.5]} 12. Ba5 {[%clk 0:02:58.1]} 12... Rc8 {[%clk
0:02:47.1]} 13. a3 {[%clk 0:02:52.6]} 13... N5b6 {[%clk 0:02:45.5]} 14. Nbd2
{[%clk 0:02:41.8]} 14... c5 {[%clk 0:02:42.6]} 15. dxc5 {[%clk 0:02:34.1]} 15...
Rxc5 {[%clk 0:02:39.7]} 16. Qb1 {[%clk 0:02:26.5]} 16... Qa8 {[%clk 0:02:39.4]}
17. b4 {[%clk 0:02:25.8]} 17... Rcc8 {[%clk 0:02:32]} 18. Rd1 {[%clk 0:02:14.2]}
18... Bf6 {[%clk 0:02:29.6]} 19. Ra2 {[%clk 0:02:12.8]} 19... Bd5 {[%clk
0:02:27.2]} 20. Rc2 {[%clk 0:02:05.5]} 20... Rxc2 {[%clk 0:02:26.8]} 21. Qxc2
{[%clk 0:02:06.4]} 21... Rc8 {[%clk 0:02:26.6]} 22. Qb1 {[%clk 0:02:03.9]} 22...
Na4 {[%clk 0:02:25.7]} 23. Re1 {[%clk 0:01:44.8]} 23... Nc3 {[%clk 0:02:18.3]}
24. Qd3 {[%clk 0:01:39.2]} 24... Ne5 {[%clk 0:01:48.1]} 25. Nxe5 {[%clk
0:01:20.5]} 25... Bxg2 {[%clk 0:01:47.6]} 26. Nd7 {[%clk 0:01:20.3]} 26... Bh3
{[%clk 0:01:26.8]} 27. Nxf6+ {[%clk 0:01:15.7]} 27... gxf6 {[%clk 0:01:26.6]}
28. e4 {[%clk 0:01:12.1]} 28... Qc6 {[%clk 0:01:15.2]} 29. Nb3 {[%clk
0:01:04.4]} 29... Qc4 {[%clk 0:01:12.8]} 30. Qxc4 {[%clk 0:01:01.7]} 30... Rxc4
{[%clk 0:01:11]} 31. Nc5 {[%clk 0:01:01.8]} 31... Kg7 {[%clk 0:01:05.6]} 32.
Nxa6 {[%clk 0:01:01.6]} 32... Nxe4 {[%clk 0:01:05.3]} 33. Nc7 {[%clk 0:00:57.7]}
33... Nd2 {[%clk 0:01:03.4]} 34. Rd1 {[%clk 0:00:53.5]} 34... Nf3+ {[%clk
0:01:02.9]} 35. Kh1 {[%clk 0:00:53.5]} 35... Rc2 {[%clk 0:01:02.2]} 36. Bb6
{[%clk 0:00:54]} 36... Ra2 {[%clk 0:00:50.7]} 37. Nxb5 {[%clk 0:00:53.7]} 37...
f5 {[%clk 0:00:47]} 38. Nd4 {[%clk 0:00:51.8]} 38... Ng5 {[%clk 0:00:40.9]} 39.
b5 {[%clk 0:00:42.9]} 39... Ne4 {[%clk 0:00:38.9]} 40. Rb1 {[%clk 0:00:30.1]}
40... Nxf2+ {[%clk 0:00:37.4]} 41. Kg1 {[%clk 0:00:30.1]} 41... Ng4 {[%clk
0:00:34.7]} 42. Rd1 {[%clk 0:00:18]} 42... Rg2+ {[%clk 0:00:33.8]} 43. Kf1
{[%clk 0:00:18.5]} 43... Ne3+ {[%clk 0:00:19.6]} 44. Ke1 {[%clk 0:00:18.3]}
44... Nxd1 {[%clk 0:00:19.5]} 45. Kxd1 {[%clk 0:00:18.1]} 45... Rxh2 {[%clk
0:00:20.3]} 46. Bc5 {[%clk 0:00:17.8]} 46... Bg4+ {[%clk 0:00:20.2]} 47. Kc1
{[%clk 0:00:17.6]} 47... Ra2 {[%clk 0:00:18.9]} 48. b6 {[%clk 0:00:17.6]} 48...
Ra1+ {[%clk 0:00:16.5]} 49. Kc2 {[%clk 0:00:15.7]} 49... Bd1+ {[%clk 0:00:15]}
50. Kb2 {[%clk 0:00:16]} 50... Rxa3 {[%clk 0:00:12.8]} 51. Kxa3 {[%clk
0:00:14.3]} 51... e5 {[%clk 0:00:12.5]} 52. b7 {[%clk 0:00:14.3]} 52... exd4
{[%clk 0:00:12.7]} 53. Bxd4+ {[%clk 0:00:15.2]} 53... Kg6 {[%clk 0:00:12.2]} 54.
b8=Q {[%clk 0:00:15.5]} 54... h5 {[%clk 0:00:12]} 55. Qg8+ {[%clk 0:00:15.5]}
55... Kh6 {[%clk 0:00:07.5]} 56. Be3+ {[%clk 0:00:15.3]} 56... f4 {[%clk
0:00:04.5]} 57. Bxf4# {[%clk 0:00:16.2]} 1-0